[Event "*** Titled Tuesday Blitz"]
[Site "Chess.com"]
[Date "2021.03.09"]
[Round "7"]
[White "Khnykin_Nikolay"]
[Black "IECS12"]
[Result "0-1"]
[WhiteElo "2052"]
[BlackElo "2227"]
[TimeControl "180+1"]
[EndTime "11:22:00 PST"]
[Termination "IECS12 won by checkmate"]

1. e4 {[%clk 0:03:00.9]} 1... c5 {[%clk 0:03:00]} 2. d4 {[%clk 0:03:00.4]} 2...
cxd4 {[%clk 0:02:59.2]} 3. c3 {[%clk 0:03:00.3]} 3... d3 {[%clk 0:02:59.7]} 4.
c4 {[%clk 0:02:59.4]} 4... Nc6 {[%clk 0:02:59.9]} 5. Bxd3 {[%clk 0:02:59.8]}
5... g6 {[%clk 0:03:00.4]} 6. Nf3 {[%clk 0:03:00.3]} 6... Bg7 {[%clk 0:03:01]}
7. O-O {[%clk 0:03:00.6]} 7... d6 {[%clk 0:03:01.3]} 8. a3 {[%clk 0:03:01.1]}
8... Nf6 {[%clk 0:03:01.7]} 9. Bf4 {[%clk 0:02:59.5]} 9... O-O {[%clk
0:02:58.1]} 10. Nc3 {[%clk 0:02:56.6]} 10... Bd7 {[%clk 0:02:44.4]} 11. Rc1
{[%clk 0:02:53.8]} 11... Rc8 {[%clk 0:02:41.3]} 12. Bb1 {[%clk 0:02:51.5]} 12...
Bg4 {[%clk 0:02:40.6]} 13. Nd5 {[%clk 0:02:49.1]} 13... Nd7 {[%clk 0:02:29.2]}
14. Qd3 {[%clk 0:02:36]} 14... Bxb2 {[%clk 0:02:25.4]} 15. Rc2 {[%clk
0:02:26.1]} 15... Bg7 {[%clk 0:02:24.6]} 16. h3 {[%clk 0:02:10.9]} 16... Bxf3
{[%clk 0:02:23.3]} 17. gxf3 {[%clk 0:02:11.7]} 17... Nc5 {[%clk 0:02:22.5]} 18.
Qd1 {[%clk 0:02:07.6]} 18... Qd7 {[%clk 0:02:20.8]} 19. Kh2 {[%clk 0:02:04.9]}
19... Ne5 {[%clk 0:02:04.3]} 20. Be3 {[%clk 0:02:03.2]} 20... Ne6 {[%clk
0:01:47.2]} 21. f4 {[%clk 0:01:50.7]} 21... Nxc4 {[%clk 0:01:46.4]} 22. Rxc4
{[%clk 0:01:47.1]} 22... Rxc4 {[%clk 0:01:45.3]} 23. e5 {[%clk 0:01:47.8]} 23...
b6 {[%clk 0:01:11.7]} 24. h4 {[%clk 0:01:33.5]} 24... Rd8 {[%clk 0:01:09.6]} 25.
h5 {[%clk 0:01:33]} 25... dxe5 {[%clk 0:01:09]} 26. hxg6 {[%clk 0:01:26.7]}
26... hxg6 {[%clk 0:01:08.1]} 27. Ba2 {[%clk 0:01:23.1]} 27... Rcc8 {[%clk
0:01:00.7]} 28. Qf3 {[%clk 0:01:17.9]} 28... exf4 {[%clk 0:00:56.3]} 29. Rd1
{[%clk 0:01:09.5]} 29... fxe3 {[%clk 0:00:47.6]} 30. Nf6+ {[%clk 0:01:04]} 30...
exf6 {[%clk 0:00:48.5]} 31. Rxd7 {[%clk 0:01:04.2]} 31... Rxd7 {[%clk
0:00:49.4]} 32. Qxe3 {[%clk 0:01:00.7]} 32... Nc5 {[%clk 0:00:12.6]} 33. Qh3
{[%clk 0:00:53.1]} 33... Rcd8 {[%clk 0:00:09.5]} 34. Bc4 {[%clk 0:00:50]} 34...
Rd4 {[%clk 0:00:09.2]} 35. Bb5 {[%clk 0:00:48.8]} 35... f5 {[%clk 0:00:09.8]}
36. Qf3 {[%clk 0:00:43.1]} 36... Be5+ {[%clk 0:00:10]} 37. Kg2 {[%clk
0:00:41.5]} 37... Kg7 {[%clk 0:00:10.8]} 38. a4 {[%clk 0:00:40.2]} 38... Ne4
{[%clk 0:00:10.6]} 39. Qe3 {[%clk 0:00:33.9]} 39... Rd2 {[%clk 0:00:10.8]} 40.
Bc6 {[%clk 0:00:28.1]} 40... Rxf2+ {[%clk 0:00:10.3]} 41. Kh3 {[%clk 0:00:25]}
41... Rdd2 {[%clk 0:00:07.5]} 42. Bxe4 {[%clk 0:00:24.3]} 42... fxe4 {[%clk
0:00:08.4]} 43. Qxe4 {[%clk 0:00:20.3]} 43... Rh2+ {[%clk 0:00:08.1]} 44. Kg4
{[%clk 0:00:19.8]} 44... f5+ {[%clk 0:00:08]} 45. Qxf5 {[%clk 0:00:19.4]} 45...
gxf5+ {[%clk 0:00:08.9]} 46. Kf3 {[%clk 0:00:20]} 46... Rd3# {[%clk 0:00:08.2]}
0-1

[Event "*** Titled Tuesday Blitz"]
[Site "Chess.com"]
[Date "2021.03.09"]
[Round "7"]
[White "Volodar_Murzin"]
[Black "arctic_t00"]
[Result "1-0"]
[WhiteElo "2668"]
[BlackElo "2535"]
[TimeControl "180+1"]
[EndTime "11:22:03 PST"]
[Termination "Volodar_Murzin won by resignation"]

1. e4 {[%clk 0:03:00.9]} 1... e6 {[%clk 0:02:59.8]} 2. d4 {[%clk 0:02:58.3]}
2... d5 {[%clk 0:03:00.2]} 3. Nc3 {[%clk 0:02:57.5]} 3... Nf6 {[%clk 0:03:00.3]}
4. e5 {[%clk 0:02:56.5]} 4... Nfd7 {[%clk 0:03:00.8]} 5. Nce2 {[%clk 0:02:56.1]}
5... c5 {[%clk 0:03:00.9]} 6. c3 {[%clk 0:02:54.4]} 6... Nc6 {[%clk 0:03:01.5]}
7. f4 {[%clk 0:02:53.3]} 7... Be7 {[%clk 0:02:59.6]} 8. Nf3 {[%clk 0:02:52.4]}
8... O-O {[%clk 0:02:59.4]} 9. g3 {[%clk 0:02:49.9]} 9... f6 {[%clk 0:02:57.7]}
10. Bh3 {[%clk 0:02:46]} 10... Nb6 {[%clk 0:02:52]} 11. O-O {[%clk 0:02:44.7]}
11... cxd4 {[%clk 0:02:44.6]} 12. cxd4 {[%clk 0:02:42.6]} 12... Bd7 {[%clk
0:02:40.9]} 13. Kh1 {[%clk 0:02:23.9]} 13... Rc8 {[%clk 0:02:40.1]} 14. b3
{[%clk 0:02:01.9]} 14... a5 {[%clk 0:02:24]} 15. Bd2 {[%clk 0:01:57.7]} 15...
Nb4 {[%clk 0:02:19]} 16. a3 {[%clk 0:01:50.7]} 16... Nc6 {[%clk 0:02:12.9]} 17.
a4 {[%clk 0:01:39]} 17... Nb4 {[%clk 0:02:09.5]} 18. Rc1 {[%clk 0:01:34.6]}
18... Na8 {[%clk 0:02:02]} 19. Nc3 {[%clk 0:01:26.3]} 19... Nc7 {[%clk
0:01:59.4]} 20. Qe2 {[%clk 0:01:23]} 20... Qe8 {[%clk 0:01:52.8]} 21. g4 {[%clk
0:01:04.5]} 21... b5 {[%clk 0:01:51.3]} 22. f5 {[%clk 0:00:59.7]} 22... bxa4
{[%clk 0:01:43.1]} 23. bxa4 {[%clk 0:00:58.3]} 23... Bxa4 {[%clk 0:01:18.6]} 24.
Nxa4 {[%clk 0:00:51]} 24... Qxa4 {[%clk 0:01:19.5]} 25. fxe6 {[%clk 0:00:42.1]}
25... Qb5 {[%clk 0:01:05]} 26. Qe3 {[%clk 0:00:34.9]} 26... Qd3 {[%clk
0:00:46.1]} 27. exf6 {[%clk 0:00:22.3]} 27... Bxf6 {[%clk 0:00:43.3]} 28. e7
{[%clk 0:00:15.2]} 28... Rfe8 {[%clk 0:00:39.4]} 29. g5 {[%clk 0:00:12.9]} 29...
Bxe7 {[%clk 0:00:16.1]} 30. Bxc8 {[%clk 0:00:09.5]} 30... Qxe3 {[%clk
0:00:16.1]} 31. Bxe3 {[%clk 0:00:09.8]} 31... Rxc8 {[%clk 0:00:16.9]} 32. Bf4
{[%clk 0:00:09.7]} 32... Nba6 {[%clk 0:00:16.6]} 33. Rc6 {[%clk 0:00:07.9]}
33... Ba3 {[%clk 0:00:08.2]} 34. Ra1 {[%clk 0:00:04.5]} 34... Be7 {[%clk
0:00:06.5]} 35. Rxa5 {[%clk 0:00:03.9]} 35... Rf8 {[%clk 0:00:05.7]} 36. Bxc7
{[%clk 0:00:04.3]} 36... Nxc7 {[%clk 0:00:04.3]} 37. Kg2 {[%clk 0:00:04.6]}
37... Bd8 {[%clk 0:00:05.2]} 38. Ra7 {[%clk 0:00:04.5]} 38... Rf7 {[%clk
0:00:03.5]} 39. Ne5 {[%clk 0:00:05]} 39... Re7 {[%clk 0:00:03.1]} 40. Rd6 {[%clk
0:00:05.6]} 1-0

[Event "*** Titled Tuesday Blitz"]
[Site "Chess.com"]
[Date "2021.03.09"]
[Round "7"]
[White "ChampStan"]
[Black "sau6on"]
[Result "1-0"]
[WhiteElo "2041"]
[BlackElo "2385"]
[TimeControl "180+1"]
[EndTime "11:22:04 PST"]
[Termination "ChampStan won on time"]

1. d4 {[%clk 0:02:55.2]} 1... d5 {[%clk 0:02:59.2]} 2. c4 {[%clk 0:02:54.7]}
2... Nc6 {[%clk 0:02:59.6]} 3. cxd5 {[%clk 0:02:54.5]} 3... Qxd5 {[%clk
0:02:59.6]} 4. e3 {[%clk 0:02:54.9]} 4... e5 {[%clk 0:03:00.2]} 5. Nc3 {[%clk
0:02:55.3]} 5... Bb4 {[%clk 0:03:00.8]} 6. Bd2 {[%clk 0:02:55.9]} 6... Bxc3
{[%clk 0:03:01.4]} 7. Bxc3 {[%clk 0:02:56.6]} 7... exd4 {[%clk 0:03:01.1]} 8.
Ne2 {[%clk 0:02:57.2]} 8... Nf6 {[%clk 0:03:00.5]} 9. Nxd4 {[%clk 0:02:56]} 9...
O-O {[%clk 0:03:00.4]} 10. Qb3 {[%clk 0:02:55.1]} 10... Nxd4 {[%clk 0:02:56.4]}
11. Bxd4 {[%clk 0:02:54.6]} 11... Qxb3 {[%clk 0:02:54.4]} 12. axb3 {[%clk
0:02:53.9]} 12... b6 {[%clk 0:02:54.3]} 13. b4 {[%clk 0:02:40.3]} 13... Bb7
{[%clk 0:02:45.3]} 14. f3 {[%clk 0:02:37.8]} 14... Nd5 {[%clk 0:02:20.2]} 15. b5
{[%clk 0:02:34.7]} 15... Rfe8 {[%clk 0:02:07.2]} 16. Kf2 {[%clk 0:02:32.5]}
16... Nb4 {[%clk 0:01:56.8]} 17. Rc1 {[%clk 0:02:28.6]} 17... c5 {[%clk
0:01:56.5]} 18. bxc6 {[%clk 0:02:26.3]} 18... Nxc6 {[%clk 0:01:56.4]} 19. Bc3
{[%clk 0:02:20.1]} 19... a6 {[%clk 0:01:47.1]} 20. Be2 {[%clk 0:02:16.3]} 20...
b5 {[%clk 0:01:46.5]} 21. Rhd1 {[%clk 0:02:14.2]} 21... Rad8 {[%clk 0:01:41.7]}
22. e4 {[%clk 0:02:00.4]} 22... f6 {[%clk 0:01:14.1]} 23. g4 {[%clk 0:01:53.1]}
23... Kf7 {[%clk 0:01:10.4]} 24. h4 {[%clk 0:01:46.7]} 24... h6 {[%clk
0:00:56.2]} 25. Ke3 {[%clk 0:01:15.8]} 25... Ke6 {[%clk 0:00:47.6]} 26. h5
{[%clk 0:00:48.6]} 26... Ne5 {[%clk 0:00:36.9]} 27. b3 {[%clk 0:00:39.2]} 27...
Rc8 {[%clk 0:00:29.8]} 28. f4 {[%clk 0:00:34]} 28... Nc6 {[%clk 0:00:23.1]} 29.
g5 {[%clk 0:00:32.5]} 29... Kf7 {[%clk 0:00:13.6]} 30. gxf6 {[%clk 0:00:28.4]}
30... gxf6 {[%clk 0:00:13.4]} 31. Bg4 {[%clk 0:00:28.5]} 31... Rcd8 {[%clk
0:00:11.8]} 32. Bf3 {[%clk 0:00:15.2]} 32... Ne7 {[%clk 0:00:11]} 33. Ba5 {[%clk
0:00:14.1]} 33... Rxd1 {[%clk 0:00:08.2]} 34. Rxd1 {[%clk 0:00:14.3]} 34... Nd5+
{[%clk 0:00:06.9]} 35. Kf2 {[%clk 0:00:07.7]} 35... Nxf4 {[%clk 0:00:07.8]} 36.
b4 {[%clk 0:00:04]} 1-0

[Event "*** Titled Tuesday Blitz"]
[Site "Chess.com"]
[Date "2021.03.09"]
[Round "7"]
[White "axvesik"]
[Black "CrushingKings"]
[Result "1/2-1/2"]
[WhiteElo "2522"]
[BlackElo "2408"]
[TimeControl "180+1"]
[EndTime "11:22:05 PST"]
[Termination "Game drawn by repetition"]

1. e4 {[%clk 0:02:55.7]} 1... g6 {[%clk 0:02:59.8]} 2. d4 {[%clk 0:02:49.7]}
2... Bg7 {[%clk 0:03:00.2]} 3. Nc3 {[%clk 0:02:50.6]} 3... c6 {[%clk 0:03:00.6]}
4. Be3 {[%clk 0:02:51.5]} 4... d5 {[%clk 0:03:01.1]} 5. e5 {[%clk 0:02:51.4]}
5... f6 {[%clk 0:03:01.2]} 6. Nf3 {[%clk 0:02:50]} 6... Bg4 {[%clk 0:03:00.7]}
7. exf6 {[%clk 0:02:48.8]} 7... Nxf6 {[%clk 0:03:01.6]} 8. Be2 {[%clk 0:02:46]}
8... Nbd7 {[%clk 0:03:01.6]} 9. Qd2 {[%clk 0:02:45.6]} 9... Bxf3 {[%clk
0:02:53.7]} 10. Bxf3 {[%clk 0:02:45.2]} 10... e5 {[%clk 0:02:54.6]} 11. dxe5
{[%clk 0:02:44.6]} 11... Nxe5 {[%clk 0:02:55.5]} 12. Be2 {[%clk 0:02:44.5]}
12... O-O {[%clk 0:02:53.4]} 13. h3 {[%clk 0:02:36.8]} 13... Qa5 {[%clk
0:02:45.6]} 14. O-O {[%clk 0:02:28.6]} 14... Rae8 {[%clk 0:02:45.4]} 15. f4
{[%clk 0:02:25.6]} 15... Nf7 {[%clk 0:02:42.6]} 16. f5 {[%clk 0:02:23.2]} 16...
gxf5 {[%clk 0:02:15.6]} 17. Rxf5 {[%clk 0:02:15.7]} 17... Nd6 {[%clk 0:02:15.5]}
18. Rf3 {[%clk 0:02:06.3]} 18... Qc7 {[%clk 0:02:06.3]} 19. Bd3 {[%clk
0:01:57.4]} 19... Nde4 {[%clk 0:01:05.4]} 20. Nxe4 {[%clk 0:01:52]} 20... Nxe4
{[%clk 0:00:51.7]} 21. Bxe4 {[%clk 0:01:47.6]} 21... Rxe4 {[%clk 0:00:52.3]} 22.
Raf1 {[%clk 0:01:46.7]} 22... Rxf3 {[%clk 0:00:50.6]} 23. Rxf3 {[%clk
0:01:45.8]} 23... Qe5 {[%clk 0:00:32.7]} 24. c3 {[%clk 0:01:37.9]} 24... a5
{[%clk 0:00:30]} 25. Bd4 {[%clk 0:01:37.6]} 25... Qh5 {[%clk 0:00:16.5]} 26. Rg3
{[%clk 0:01:32.1]} 26... Re7 {[%clk 0:00:15.9]} 27. Qf4 {[%clk 0:01:30]} 27...
Qe8 {[%clk 0:00:08.4]} 28. Qh6 {[%clk 0:01:00.6]} 28... Qf8 {[%clk 0:00:08.1]}
29. h4 {[%clk 0:00:59.5]} 29... Kh8 {[%clk 0:00:07.5]} 30. Rxg7 {[%clk
0:00:53.3]} 30... Rxg7 {[%clk 0:00:08.4]} 31. g4 {[%clk 0:00:34.6]} 31... Kg8
{[%clk 0:00:08.2]} 32. Qxg7+ {[%clk 0:00:34.7]} 32... Qxg7 {[%clk 0:00:09.1]}
33. Bxg7 {[%clk 0:00:35]} 33... Kxg7 {[%clk 0:00:10]} 34. Kf2 {[%clk 0:00:31.9]}
34... Kf6 {[%clk 0:00:06.6]} 35. Ke3 {[%clk 0:00:32]} 35... Ke5 {[%clk 0:00:07]}
36. b4 {[%clk 0:00:28.9]} 36... a4 {[%clk 0:00:01.6]} 37. a3 {[%clk 0:00:23.8]}
37... b6 {[%clk 0:00:01.7]} 38. Kf3 {[%clk 0:00:23.6]} 38... c5 {[%clk
0:00:02.1]} 39. Ke3 {[%clk 0:00:20.7]} 39... h6 {[%clk 0:00:02.6]} 40. g5 {[%clk
0:00:15.6]} 40... h5 {[%clk 0:00:01.4]} 41. Kf3 {[%clk 0:00:14.7]} 41... Kf5
{[%clk 0:00:01.8]} 42. Ke3 {[%clk 0:00:13.9]} 42... Ke5 {[%clk 0:00:02.3]} 43.
Kd3 {[%clk 0:00:14.3]} 43... Kf5 {[%clk 0:00:02.5]} 44. bxc5 {[%clk 0:00:08.2]}
44... bxc5 {[%clk 0:00:03.4]} 45. Ke3 {[%clk 0:00:08.4]} 45... Ke5 {[%clk
0:00:03.9]} 46. Kd3 {[%clk 0:00:07.6]} 46... Kf5 {[%clk 0:00:04.4]} 47. Ke3
{[%clk 0:00:08.3]} 47... Ke5 {[%clk 0:00:04.4]} 48. Kd3 {[%clk 0:00:08.8]} 48...
Kf5 {[%clk 0:00:04.1]} 1/2-1/2

[Event "*** Titled Tuesday Blitz"]
[Site "Chess.com"]
[Date "2021.03.09"]
[Round "7"]
[White "ChessQueen"]
[Black "Konavets"]
[Result "0-1"]
[WhiteElo "2779"]
[BlackElo "2930"]
[TimeControl "180+1"]
[EndTime "11:22:06 PST"]
[Termination "Konavets won on time"]

1. e4 {[%clk 0:03:00.9]} 1... c6 {[%clk 0:02:54]} 2. Nc3 {[%clk 0:02:59.6]} 2...
d5 {[%clk 0:02:54.9]} 3. Nf3 {[%clk 0:02:59.9]} 3... g6 {[%clk 0:02:50.7]} 4. d4
{[%clk 0:02:54]} 4... Bg7 {[%clk 0:02:50]} 5. e5 {[%clk 0:02:51.3]} 5... Bg4
{[%clk 0:02:47.6]} 6. h3 {[%clk 0:02:50.6]} 6... Bxf3 {[%clk 0:02:47.2]} 7. Qxf3
{[%clk 0:02:51.5]} 7... e6 {[%clk 0:02:47.4]} 8. Bd3 {[%clk 0:02:43.7]} 8... a6
{[%clk 0:02:43.6]} 9. O-O {[%clk 0:02:42.1]} 9... c5 {[%clk 0:02:42.5]} 10. dxc5
{[%clk 0:02:29.8]} 10... Nd7 {[%clk 0:02:42.6]} 11. Qg3 {[%clk 0:02:16.1]} 11...
Bxe5 {[%clk 0:02:33.1]} 12. f4 {[%clk 0:02:14.2]} 12... Bd4+ {[%clk 0:02:30.8]}
13. Be3 {[%clk 0:02:13.6]} 13... Qf6 {[%clk 0:02:27.9]} 14. Na4 {[%clk
0:02:03.4]} 14... Ne7 {[%clk 0:02:17]} 15. c3 {[%clk 0:02:01.9]} 15... Bxe3+
{[%clk 0:02:15.2]} 16. Qxe3 {[%clk 0:02:02.1]} 16... O-O {[%clk 0:02:12.2]} 17.
Rac1 {[%clk 0:01:53.4]} 17... Rac8 {[%clk 0:02:05.7]} 18. b4 {[%clk 0:01:51.6]}
18... Nc6 {[%clk 0:01:57.3]} 19. a3 {[%clk 0:01:51.6]} 19... Rfe8 {[%clk
0:01:50.6]} 20. Bb1 {[%clk 0:01:28.4]} 20... Re7 {[%clk 0:01:40.6]} 21. Qd3
{[%clk 0:01:24.1]} 21... Rce8 {[%clk 0:01:30.9]} 22. Rcd1 {[%clk 0:01:20.1]}
22... Qh4 {[%clk 0:01:20.9]} 23. Nb2 {[%clk 0:01:04.5]} 23... e5 {[%clk
0:01:11.2]} 24. Qxd5 {[%clk 0:00:58.3]} 24... exf4 {[%clk 0:01:09.5]} 25. Nc4
{[%clk 0:00:54.1]} 25... Nf6 {[%clk 0:00:44.3]} 26. Qf3 {[%clk 0:00:53.7]} 26...
Nh5 {[%clk 0:00:41.1]} 27. Nd6 {[%clk 0:00:47.9]} 27... Re3 {[%clk 0:00:35.5]}
28. Qd5 {[%clk 0:00:46.8]} 28... R8e7 {[%clk 0:00:31.2]} 29. Ba2 {[%clk
0:00:43.9]} 29... Ne5 {[%clk 0:00:31.2]} 30. Qd4 {[%clk 0:00:17.5]} 30... Rg3
{[%clk 0:00:20.4]} 31. Ne4 {[%clk 0:00:12.8]} 31... Nc6 {[%clk 0:00:19.3]} 32.
Qd5 {[%clk 0:00:11]} 32... Re3 {[%clk 0:00:15.6]} 33. Nd2 {[%clk 0:00:07.5]}
33... Ne5 {[%clk 0:00:13.5]} 34. Nc4 {[%clk 0:00:08]} 34... Ng3 {[%clk 0:00:09]}
35. Rf2 {[%clk 0:00:05.4]} 35... Ne2+ {[%clk 0:00:08.9]} 36. Rxe2 {[%clk
0:00:05.9]} 36... Rxe2 {[%clk 0:00:09.8]} 37. Nxe5 {[%clk 0:00:06.1]} 37...
R2xe5 {[%clk 0:00:09.7]} 38. Qd8+ {[%clk 0:00:06.1]} 38... Kg7 {[%clk
0:00:09.8]} 39. Qd4 {[%clk 0:00:06.7]} 39... f6 {[%clk 0:00:08.2]} 40. Rf1
{[%clk 0:00:06.4]} 40... Re1 {[%clk 0:00:08.2]} 41. Qd2 {[%clk 0:00:03.1]} 41...
Qg3 {[%clk 0:00:06.9]} 42. Bc4 {[%clk 0:00:01.4]} 42... Rxf1+ {[%clk 0:00:06.3]}
43. Bxf1 {[%clk 0:00:01.1]} 43... Qe3+ {[%clk 0:00:06.9]} 44. Qf2 {[%clk
0:00:01.1]} 44... Qxc3 {[%clk 0:00:06.6]} 0-1

[Event "*** Titled Tuesday Blitz"]
[Site "Chess.com"]
[Date "2021.03.09"]
[Round "7"]
[White "lider34"]
[Black "Andrii_Prydun"]
[Result "1-0"]
[WhiteElo "2461"]
[BlackElo "2279"]
[TimeControl "180+1"]
[EndTime "11:22:06 PST"]
[Termination "lider34 won on time"]

1. e4 {[%clk 0:03:00.9]} 1... d5 {[%clk 0:02:59.4]} 2. exd5 {[%clk 0:03:00.4]}
2... Qxd5 {[%clk 0:03:00.3]} 3. Nc3 {[%clk 0:02:59.9]} 3... Qd6 {[%clk
0:03:00.4]} 4. d4 {[%clk 0:02:59.3]} 4... Nf6 {[%clk 0:03:00.1]} 5. Nf3 {[%clk
0:02:59.2]} 5... c6 {[%clk 0:03:00.5]} 6. Bc4 {[%clk 0:02:54.3]} 6... Bf5 {[%clk
0:02:58.2]} 7. O-O {[%clk 0:02:53.4]} 7... Nbd7 {[%clk 0:02:55.1]} 8. Re1 {[%clk
0:02:50.4]} 8... e6 {[%clk 0:02:53.9]} 9. Bg5 {[%clk 0:02:41]} 9... Be7 {[%clk
0:02:48.7]} 10. Qd2 {[%clk 0:02:40.9]} 10... O-O {[%clk 0:02:47]} 11. a3 {[%clk
0:02:37.5]} 11... Rad8 {[%clk 0:02:31.5]} 12. Bf4 {[%clk 0:02:33.3]} 12... Nb6
{[%clk 0:02:13]} 13. Bxd6 {[%clk 0:02:29.7]} 13... Nxc4 {[%clk 0:02:12.8]} 14.
Bxe7 {[%clk 0:01:47.2]} 14... Nxd2 {[%clk 0:02:11.8]} 15. Nxd2 {[%clk
0:01:44.9]} 15... Bxc2 {[%clk 0:02:11.5]} 16. Bxd8 {[%clk 0:01:35.8]} 16... Rxd8
{[%clk 0:02:11.1]} 17. Nf3 {[%clk 0:01:34.4]} 17... Bb3 {[%clk 0:02:06.5]} 18.
Nd2 {[%clk 0:01:24.3]} 18... Bc2 {[%clk 0:02:06.1]} 19. Rac1 {[%clk 0:01:24.2]}
19... Bg6 {[%clk 0:02:04.8]} 20. Nf3 {[%clk 0:01:22.3]} 20... Bh5 {[%clk
0:02:03.8]} 21. Red1 {[%clk 0:01:11.2]} 21... Bxf3 {[%clk 0:01:59.7]} 22. gxf3
{[%clk 0:01:10.5]} 22... g5 {[%clk 0:01:44.1]} 23. Kf1 {[%clk 0:01:08.7]} 23...
Nh5 {[%clk 0:01:38.4]} 24. Ne4 {[%clk 0:01:03.1]} 24... h6 {[%clk 0:01:37.4]}
25. b4 {[%clk 0:00:57.7]} 25... a6 {[%clk 0:01:36.4]} 26. a4 {[%clk 0:00:57.2]}
26... Nf4 {[%clk 0:01:33.7]} 27. Nc5 {[%clk 0:00:56.7]} 27... Rb8 {[%clk
0:01:23.6]} 28. Rb1 {[%clk 0:00:53.4]} 28... Nd5 {[%clk 0:01:18.7]} 29. b5
{[%clk 0:00:52]} 29... axb5 {[%clk 0:01:13.2]} 30. axb5 {[%clk 0:00:50.1]} 30...
cxb5 {[%clk 0:01:14.1]} 31. Rd3 {[%clk 0:00:37.3]} 31... b4 {[%clk 0:01:12.1]}
32. Rdb3 {[%clk 0:00:37.2]} 32... Kg7 {[%clk 0:00:48.1]} 33. Nd3 {[%clk
0:00:36.5]} 33... Rd8 {[%clk 0:00:10.6]} 34. Nxb4 {[%clk 0:00:35.8]} 34... Nf6
{[%clk 0:00:10.3]} 35. Rd3 {[%clk 0:00:33.4]} 35... b6 {[%clk 0:00:08.7]} 36.
Rbd1 {[%clk 0:00:32.2]} 36... h5 {[%clk 0:00:04.4]} 37. d5 {[%clk 0:00:31.9]}
37... exd5 {[%clk 0:00:03.6]} 38. Nxd5 {[%clk 0:00:31.6]} 38... Ne8 {[%clk
0:00:03]} 39. Nxb6 {[%clk 0:00:30.1]} 39... Rb8 {[%clk 0:00:03.4]} 40. Nd7
{[%clk 0:00:27.7]} 40... Rb2 {[%clk 0:00:03.6]} 41. Nc5 {[%clk 0:00:24.7]} 41...
Nc7 {[%clk 0:00:03]} 42. Rd7 {[%clk 0:00:22.3]} 42... Nb5 {[%clk 0:00:02.8]} 43.
Ne4 {[%clk 0:00:20.9]} 43... Na3 {[%clk 0:00:01.5]} 44. Nxg5 {[%clk 0:00:19.3]}
44... Kg6 {[%clk 0:00:01.3]} 45. h4 {[%clk 0:00:18.2]} 45... Nc2 {[%clk
0:00:01.7]} 46. R1d6+ {[%clk 0:00:17.3]} 1-0

[Event "*** Titled Tuesday Blitz"]
[Site "Chess.com"]
[Date "2021.03.09"]
[Round "7"]
[White "ShcufNaiRolf"]
[Black "LamaChampetre"]
[Result "0-1"]
[WhiteElo "2357"]
[BlackElo "2233"]
[TimeControl "180+1"]
[EndTime "11:22:06 PST"]
[Termination "LamaChampetre won on time"]

1. e4 {[%clk 0:03:00.9]} 1... c5 {[%clk 0:02:58.8]} 2. Nf3 {[%clk 0:02:57.8]}
2... g6 {[%clk 0:02:59]} 3. d4 {[%clk 0:02:54]} 3... cxd4 {[%clk 0:02:59.4]} 4.
Nxd4 {[%clk 0:02:54.6]} 4... Nc6 {[%clk 0:02:58.1]} 5. Nc3 {[%clk 0:02:54.4]}
5... Bg7 {[%clk 0:02:57.1]} 6. Be3 {[%clk 0:02:54.7]} 6... Nf6 {[%clk
0:02:56.7]} 7. Bc4 {[%clk 0:02:54]} 7... O-O {[%clk 0:02:55.9]} 8. Bb3 {[%clk
0:02:53.4]} 8... a6 {[%clk 0:02:54.6]} 9. O-O {[%clk 0:02:32.3]} 9... Qc7 {[%clk
0:02:52.2]} 10. Re1 {[%clk 0:02:21.5]} 10... b5 {[%clk 0:02:47]} 11. Nd5 {[%clk
0:02:11.6]} 11... Nxd5 {[%clk 0:02:40.9]} 12. exd5 {[%clk 0:02:10.2]} 12... Na5
{[%clk 0:02:03.5]} 13. Qd2 {[%clk 0:01:58.2]} 13... Nc4 {[%clk 0:01:43.6]} 14.
Bxc4 {[%clk 0:01:51.1]} 14... Qxc4 {[%clk 0:01:42.9]} 15. c3 {[%clk 0:01:40.3]}
15... Qxd5 {[%clk 0:01:05.2]} 16. Bh6 {[%clk 0:01:37.3]} 16... Bb7 {[%clk
0:01:05.1]} 17. f3 {[%clk 0:01:31.7]} 17... e5 {[%clk 0:00:55]} 18. Bxg7 {[%clk
0:01:29.4]} 18... Kxg7 {[%clk 0:00:53.1]} 19. Nf5+ {[%clk 0:01:13.7]} 19... gxf5
{[%clk 0:00:17.6]} 20. Qg5+ {[%clk 0:01:09.3]} 20... Kh8 {[%clk 0:00:17.7]} 21.
Qf6+ {[%clk 0:01:09.4]} 21... Kg8 {[%clk 0:00:17.9]} 22. Rxe5 {[%clk 0:00:43.5]}
22... Qc6 {[%clk 0:00:16.3]} 23. Qxf5 {[%clk 0:00:43.6]} 23... Qg6 {[%clk
0:00:15.6]} 24. Qf4 {[%clk 0:00:42.6]} 24... f6 {[%clk 0:00:15.6]} 25. Re7
{[%clk 0:00:40.8]} 25... Rf7 {[%clk 0:00:14.8]} 26. Rae1 {[%clk 0:00:39.5]}
26... Raf8 {[%clk 0:00:13.8]} 27. Kh1 {[%clk 0:00:28.9]} 27... Bc6 {[%clk
0:00:14]} 28. R7e3 {[%clk 0:00:17.5]} 28... Rg7 {[%clk 0:00:11.4]} 29. R1e2
{[%clk 0:00:15.8]} 29... Qg5 {[%clk 0:00:11.5]} 30. Qd6 {[%clk 0:00:14]} 30...
Qg6 {[%clk 0:00:11]} 31. h3 {[%clk 0:00:12]} 31... Qb1+ {[%clk 0:00:10.6]} 32.
Kh2 {[%clk 0:00:12.5]} 32... Qg6 {[%clk 0:00:09.3]} 33. Qf4 {[%clk 0:00:07.1]}
33... f5 {[%clk 0:00:08]} 34. Re5 {[%clk 0:00:04.2]} 34... Qg5 {[%clk
0:00:07.1]} 35. Qd4 {[%clk 0:00:03.5]} 35... Qg3+ {[%clk 0:00:06.6]} 36. Kh1
{[%clk 0:00:01.7]} 36... Bxf3 {[%clk 0:00:05.7]} 37. Re7 {[%clk 0:00:01.5]}
37... Bxg2+ {[%clk 0:00:03.6]} 38. Kg1 {[%clk 0:00:01.1]} 38... Bf3+ {[%clk
0:00:03.8]} 0-1